[Event "*** MasterClass Titled Tuesday Blitz"]
[Site "Chess.com"]
[Date "2017.12.12"]
[Round "1"]
[White "raviteja81293"]
[Black "mishanick"]
[Result "0-1"]
[WhiteElo "2413"]
[BlackElo "2771"]
[TimeControl "180+2"]
[EndTime "13:09:21 PST"]
[Termination "mishanick won by checkmate"]

1. d4 {[%clk 0:03:00.4]} 1... Nf6 {[%clk 0:02:59.8]} 2. Nf3 {[%clk 0:02:49.5]}
2... e6 {[%clk 0:02:59.7]} 3. e3 {[%clk 0:02:45.7]} 3... d5 {[%clk 0:02:58.4]}
4. c4 {[%clk 0:02:45.4]} 4... c5 {[%clk 0:02:58.7]} 5. cxd5 {[%clk 0:02:46.1]}
5... Nxd5 {[%clk 0:02:57.5]} 6. e4 {[%clk 0:02:45.4]} 6... Nb6 {[%clk
0:02:56.2]} 7. Nc3 {[%clk 0:02:46.5]} 7... Be7 {[%clk 0:02:41.9]} 8. Be3 {[%clk
0:02:38.1]} 8... cxd4 {[%clk 0:02:28.2]} 9. Nxd4 {[%clk 0:02:36.2]} 9... O-O
{[%clk 0:02:27.4]} 10. Be2 {[%clk 0:02:36.9]} 10... e5 {[%clk 0:02:06.9]} 11.
Ndb5 {[%clk 0:02:36.5]} 11... Nc6 {[%clk 0:02:01]} 12. O-O {[%clk 0:02:22.3]}
12... Bd7 {[%clk 0:01:40.9]} 13. Nd5 {[%clk 0:02:13.8]} 13... Nxd5 {[%clk
0:01:09.3]} 14. exd5 {[%clk 0:02:15.7]} 14... Nb4 {[%clk 0:01:05.2]} 15. d6
{[%clk 0:02:08.7]} 15... Bg5 {[%clk 0:01:06.1]} 16. a3 {[%clk 0:01:44.1]} 16...
Bxe3 {[%clk 0:01:04.1]} 17. fxe3 {[%clk 0:01:46]} 17... Nc6 {[%clk 0:01:02.4]}
18. Bc4 {[%clk 0:01:44.4]} 18... Qg5 {[%clk 0:00:59.2]} 19. Qf3 {[%clk
0:01:33.7]} 19... Kh8 {[%clk 0:00:48.8]} 20. Rad1 {[%clk 0:01:26.9]} 20... Rad8
{[%clk 0:00:41.3]} 21. Qf2 {[%clk 0:01:17.7]} 21... f5 {[%clk 0:00:35.8]} 22.
Nc7 {[%clk 0:01:12.8]} 22... Qf6 {[%clk 0:00:33.8]} 23. b4 {[%clk 0:01:07.7]}
23... a6 {[%clk 0:00:29.1]} 24. Rd2 {[%clk 0:01:05.8]} 24... e4 {[%clk
0:00:25.6]} 25. Rfd1 {[%clk 0:01:05.6]} 25... Ne5 {[%clk 0:00:26.6]} 26. Be2
{[%clk 0:00:56.7]} 26... Bc6 {[%clk 0:00:27.1]} 27. h4 {[%clk 0:00:52.4]} 27...
Rd7 {[%clk 0:00:25.6]} 28. Qg3 {[%clk 0:00:50.3]} 28... Rfd8 {[%clk 0:00:21.8]}
29. Nd5 {[%clk 0:00:50.6]} 29... Qxd6 {[%clk 0:00:17.1]} 30. Nc3 {[%clk
0:00:26.1]} 30... Nf3+ {[%clk 0:00:16.1]} 31. Kf2 {[%clk 0:00:21.3]} 31... Qxg3+
{[%clk 0:00:16.3]} 32. Kxg3 {[%clk 0:00:21.5]} 32... Nxd2 {[%clk 0:00:18.2]} 33.
Re1 {[%clk 0:00:17.7]} 33... g6 {[%clk 0:00:19]} 34. a4 {[%clk 0:00:15.2]} 34...
Kg7 {[%clk 0:00:20.4]} 35. b5 {[%clk 0:00:16.4]} 35... axb5 {[%clk 0:00:21.5]}
36. axb5 {[%clk 0:00:17.8]} 36... Bd5 {[%clk 0:00:22.9]} 37. Rd1 {[%clk
0:00:18.9]} 37... Bc4 {[%clk 0:00:23.7]} 38. Bxc4 {[%clk 0:00:17.2]} 38... Nxc4
{[%clk 0:00:24.2]} 39. Rc1 {[%clk 0:00:19.1]} 39... Rd3 {[%clk 0:00:25.3]} 40.
Kf2 {[%clk 0:00:19.4]} 40... Nxe3 {[%clk 0:00:25.7]} 41. Ne2 {[%clk 0:00:19]}
41... Ng4+ {[%clk 0:00:26.7]} 42. Ke1 {[%clk 0:00:19]} 42... e3 {[%clk 0:00:26]}
43. Rc7+ {[%clk 0:00:19.7]} 43... R8d7 {[%clk 0:00:27.3]} 44. Rc1 {[%clk
0:00:15.1]} 44... Rd2 {[%clk 0:00:25.6]} 45. Nc3 {[%clk 0:00:16.5]} 45... Rxg2
{[%clk 0:00:25.7]} 46. b6 {[%clk 0:00:15.6]} 46... Rg1+ {[%clk 0:00:26.8]} 47.
Ke2 {[%clk 0:00:11]} 47... Rd2+ {[%clk 0:00:28.7]} 48. Kf3 {[%clk 0:00:08.2]}
48... Rf2# {[%clk 0:00:30.6]} 0-1

[Event "*** MasterClass Titled Tuesday Blitz"]
[Site "Chess.com"]
[Date "2017.12.12"]
[Round "1"]
[White "Blitzstream"]
[Black "champ1000"]
[Result "0-1"]
[WhiteElo "2504"]
[BlackElo "2249"]
[TimeControl "180+2"]
[EndTime "13:09:21 PST"]
[Termination "champ1000 won by resignation"]

1. g4 {[%clk 0:03:01.9]} 1... e5 {[%clk 0:02:59.1]} 2. e3 {[%clk 0:02:56.5]}
2... c6 {[%clk 0:02:58.5]} 3. d4 {[%clk 0:02:53]} 3... e4 {[%clk 0:02:58.2]} 4.
c4 {[%clk 0:02:51.2]} 4... d6 {[%clk 0:02:58.6]} 5. Nc3 {[%clk 0:02:51.8]} 5...
f5 {[%clk 0:02:52.8]} 6. gxf5 {[%clk 0:02:49.9]} 6... Bxf5 {[%clk 0:02:53.8]} 7.
Nge2 {[%clk 0:02:49.6]} 7... Bg6 {[%clk 0:02:52.4]} 8. Nf4 {[%clk 0:02:49.2]}
8... Bf5 {[%clk 0:02:50.8]} 9. Bg2 {[%clk 0:02:49.2]} 9... Nf6 {[%clk
0:02:49.5]} 10. Qb3 {[%clk 0:02:39]} 10... Qb6 {[%clk 0:02:40.5]} 11. Bd2 {[%clk
0:02:37]} 11... Nbd7 {[%clk 0:02:24.1]} 12. O-O-O {[%clk 0:02:33.1]} 12... Be7
{[%clk 0:02:08.4]} 13. Nfe2 {[%clk 0:02:19.4]} 13... Bg4 {[%clk 0:02:05]} 14.
Rde1 {[%clk 0:02:16.2]} 14... Qxb3 {[%clk 0:01:58.6]} 15. axb3 {[%clk
0:02:16.7]} 15... d5 {[%clk 0:02:00]} 16. h4 {[%clk 0:01:44.1]} 16... O-O {[%clk
0:01:53]} 17. Nf4 {[%clk 0:01:44]} 17... Nb6 {[%clk 0:01:36.4]} 18. c5 {[%clk
0:01:21.1]} 18... Nbd7 {[%clk 0:01:29.8]} 19. b4 {[%clk 0:01:22.5]} 19... a6
{[%clk 0:01:24.8]} 20. Ref1 {[%clk 0:01:03.6]} 20... Nh5 {[%clk 0:01:22.3]} 21.
Nxh5 {[%clk 0:01:03.5]} 21... Bxh5 {[%clk 0:01:23.4]} 22. Bh3 {[%clk 0:01:04.8]}
22... Nf6 {[%clk 0:01:23]} 23. Rhg1 {[%clk 0:01:02.6]} 23... Kh8 {[%clk
0:01:23.6]} 24. Na4 {[%clk 0:01:00.4]} 24... Bd8 {[%clk 0:01:14.5]} 25. Be1
{[%clk 0:00:50.5]} 25... Be2 {[%clk 0:01:14.1]} 26. Kd2 {[%clk 0:00:49.3]} 26...
Bb5 {[%clk 0:01:09.4]} 27. Nc3 {[%clk 0:00:48.3]} 27... Bxf1 {[%clk 0:01:10.4]}
28. Bxf1 {[%clk 0:00:50.2]} 28... Bc7 {[%clk 0:01:08.3]} 29. Bh3 {[%clk
0:00:51.2]} 29... Rad8 {[%clk 0:01:04.5]} 30. Ke2 {[%clk 0:00:51.5]} 30... b5
{[%clk 0:01:01.9]} 31. Bd2 {[%clk 0:00:45.5]} 31... a5 {[%clk 0:01:00.2]} 32.
Na2 {[%clk 0:00:46]} 32... Ra8 {[%clk 0:00:56.7]} 33. Be6 {[%clk 0:00:36.5]}
33... Rfe8 {[%clk 0:00:52.2]} 34. Bf5 {[%clk 0:00:36.8]} 34... g6 {[%clk
0:00:50.5]} 35. Bh3 {[%clk 0:00:37.9]} 35... Re7 {[%clk 0:00:50.3]} 36. Rg5
{[%clk 0:00:38.3]} 36... Kg7 {[%clk 0:00:45.4]} 37. Rg1 {[%clk 0:00:38.8]} 37...
Nh5 {[%clk 0:00:46.3]} 38. Rg5 {[%clk 0:00:37.7]} 38... Rf7 {[%clk 0:00:45.8]}
39. Rg2 {[%clk 0:00:38.3]} 39... a4 {[%clk 0:00:43.2]} 40. Bg4 {[%clk
0:00:35.3]} 40... Nf6 {[%clk 0:00:43.3]} 41. Be6 {[%clk 0:00:36.4]} 41... Re7
{[%clk 0:00:44.6]} 42. Bh3 {[%clk 0:00:37.1]} 42... a3 {[%clk 0:00:46]} 43. b3
{[%clk 0:00:36.6]} 43... Kf7 {[%clk 0:00:41.7]} 44. Rg1 {[%clk 0:00:37.7]} 44...
h5 {[%clk 0:00:40.5]} 45. Rg2 {[%clk 0:00:35.6]} 45... Nh7 {[%clk 0:00:31.3]}
46. Rg1 {[%clk 0:00:33.6]} 46... Nf8 {[%clk 0:00:32.6]} 47. Rg2 {[%clk
0:00:32.7]} 47... Kg7 {[%clk 0:00:33.7]} 48. Rg1 {[%clk 0:00:33.2]} 48... Rf7
{[%clk 0:00:35]} 49. Bf1 {[%clk 0:00:32.1]} 49... Bd8 {[%clk 0:00:35.9]} 50. Rh1
{[%clk 0:00:33.4]} 50... Be7 {[%clk 0:00:32.2]} 51. Bg2 {[%clk 0:00:34.4]} 51...
Nh7 {[%clk 0:00:33.1]} 52. Bc1 {[%clk 0:00:34.4]} 52... Raf8 {[%clk 0:00:32.8]}
53. Rf1 {[%clk 0:00:32.9]} 53... Bxh4 {[%clk 0:00:34]} 54. f3 {[%clk 0:00:34.2]}
54... exf3+ {[%clk 0:00:34.7]} 55. Bxf3 {[%clk 0:00:36.1]} 55... Ng5 {[%clk
0:00:33.8]} 56. Bg2 {[%clk 0:00:28.1]} 56... Rxf1 {[%clk 0:00:32.5]} 57. Bxf1
{[%clk 0:00:29]} 57... Rf2+ {[%clk 0:00:34.1]} 0-1

[Event "*** MasterClass Titled Tuesday Blitz"]
[Site "Chess.com"]
[Date "2017.12.12"]
[Round "1"]
[White "biostatistician"]
[Black "ChessWarrior7197"]
[Result "0-1"]
[WhiteElo "2329"]
[BlackElo "2645"]
[TimeControl "180+2"]
[EndTime "13:09:29 PST"]
[Termination "ChessWarrior7197 won by resignation"]

1. d4 {[%clk 0:03:01.9]} 1... Nf6 {[%clk 0:03:00.7]} 2. Nf3 {[%clk 0:03:03.8]}
2... e6 {[%clk 0:03:01.6]} 3. c4 {[%clk 0:03:05.2]} 3... d5 {[%clk 0:03:01.2]}
4. Bg5 {[%clk 0:03:05.3]} 4... Be7 {[%clk 0:02:57.8]} 5. e3 {[%clk 0:03:05.5]}
5... O-O {[%clk 0:02:58]} 6. Nc3 {[%clk 0:03:04.6]} 6... Nbd7 {[%clk 0:02:58.6]}
7. Rc1 {[%clk 0:03:03.8]} 7... c6 {[%clk 0:02:58.7]} 8. Bd3 {[%clk 0:03:04.3]}
8... h6 {[%clk 0:02:48.1]} 9. Bh4 {[%clk 0:02:41.8]} 9... dxc4 {[%clk 0:02:43]}
10. Bxc4 {[%clk 0:02:42.2]} 10... c5 {[%clk 0:02:43.8]} 11. O-O {[%clk
0:02:42.4]} 11... cxd4 {[%clk 0:02:44.4]} 12. Nxd4 {[%clk 0:02:38.6]} 12... Ne5
{[%clk 0:02:42.4]} 13. Bb3 {[%clk 0:02:38.8]} 13... Bd7 {[%clk 0:02:41.5]} 14.
Bg3 {[%clk 0:02:39.2]} 14... Nc6 {[%clk 0:02:41.5]} 15. Ncb5 {[%clk 0:02:30.7]}
15... a6 {[%clk 0:02:32.8]} 16. Nd6 {[%clk 0:02:24.4]} 16... Qb6 {[%clk
0:02:23.3]} 17. Nc4 {[%clk 0:02:05.9]} 17... Qa7 {[%clk 0:02:22.9]} 18. Nxc6
{[%clk 0:01:56.5]} 18... Bxc6 {[%clk 0:02:24.8]} 19. Ne5 {[%clk 0:01:53.5]}
19... Bd5 {[%clk 0:02:15.9]} 20. Bxd5 {[%clk 0:01:53.9]} 20... Nxd5 {[%clk
0:02:16.7]} 21. e4 {[%clk 0:01:51.7]} 21... Nf6 {[%clk 0:02:08.9]} 22. Qf3
{[%clk 0:01:45.5]} 22... Rac8 {[%clk 0:02:08.9]} 23. Rxc8 {[%clk 0:01:33]} 23...
Rxc8 {[%clk 0:02:09]} 24. Nxf7 {[%clk 0:01:34.4]} 24... Kxf7 {[%clk 0:02:02.5]}
25. e5 {[%clk 0:01:35.4]} 25... Kg8 {[%clk 0:01:50.1]} 26. exf6 {[%clk
0:01:36.2]} 26... Bxf6 {[%clk 0:01:52]} 27. b3 {[%clk 0:01:36.4]} 27... Qb6
{[%clk 0:01:51.7]} 28. Qe4 {[%clk 0:01:35.2]} 28... Qc6 {[%clk 0:01:52.5]} 29.
Qe2 {[%clk 0:01:32.7]} 29... Kf7 {[%clk 0:01:44.4]} 30. Re1 {[%clk 0:01:33.2]}
30... Rd8 {[%clk 0:01:44.4]} 31. h3 {[%clk 0:01:30.7]} 31... Rd5 {[%clk
0:01:44.5]} 32. Qe3 {[%clk 0:01:18]} 32... Qd7 {[%clk 0:01:32.4]} 33. Qe2 {[%clk
0:01:17.4]} 33... Qc6 {[%clk 0:01:23.8]} 34. Qe3 {[%clk 0:01:16.8]} 34... Qd7
{[%clk 0:01:13.3]} 35. Qe2 {[%clk 0:01:17.7]} 35... Rd2 {[%clk 0:01:11.5]} 36.
Qh5+ {[%clk 0:01:18.2]} 36... Kg8 {[%clk 0:01:10.6]} 37. a4 {[%clk 0:01:19.2]}
37... Rd3 {[%clk 0:01:09]} 38. Rb1 {[%clk 0:01:14.7]} 38... Kh7 {[%clk
0:01:04.3]} 39. Kh2 {[%clk 0:01:14.8]} 39... Rd5 {[%clk 0:01:04.9]} 40. Qf3
{[%clk 0:01:15.2]} 40... h5 {[%clk 0:01:05.5]} 41. Qe4+ {[%clk 0:01:11.3]} 41...
Rf5 {[%clk 0:01:03.8]} 42. Re1 {[%clk 0:01:08.6]} 42... Kg8 {[%clk 0:00:46.8]}
43. f3 {[%clk 0:01:02.2]} 43... Kf7 {[%clk 0:00:46.1]} 44. Qe2 {[%clk
0:00:58.1]} 44... Rd5 {[%clk 0:00:45.8]} 45. Qe4 {[%clk 0:00:57.9]} 45... h4
{[%clk 0:00:45.1]} 46. Bf4 {[%clk 0:00:50.2]} 46... Rd4 {[%clk 0:00:46]} 47. Qe3
{[%clk 0:00:47.1]} 47... Qd5 {[%clk 0:00:45.7]} 48. Bb8 {[%clk 0:00:45.3]} 48...
Rd3 {[%clk 0:00:46.4]} 49. Qb6 {[%clk 0:00:43.7]} 49... Rxb3 {[%clk 0:00:45.4]}
50. Qc7+ {[%clk 0:00:44.5]} 50... Kg6 {[%clk 0:00:46.6]} 51. Qf4 {[%clk
0:00:43.3]} 51... Rb2 {[%clk 0:00:46.4]} 52. Qg4+ {[%clk 0:00:42.5]} 52... Kf7
{[%clk 0:00:46.8]} 53. Re4 {[%clk 0:00:40.1]} 53... Rb1 {[%clk 0:00:45.6]} 54.
Re1 {[%clk 0:00:28.7]} 54... Rxe1 {[%clk 0:00:42.3]} 0-1

[Event "*** MasterClass Titled Tuesday Blitz"]
[Site "Chess.com"]
[Date "2017.12.12"]
[Round "1"]
[White "Annawel"]
[Black "ENEASZ"]
[Result "1-0"]
[WhiteElo "2749"]
[BlackElo "2403"]
[TimeControl "180+2"]
[EndTime "13:09:43 PST"]
[Termination "Annawel won by checkmate"]

1. d4 {[%clk 0:03:00.1]} 1... Nf6 {[%clk 0:02:59.4]} 2. Bf4 {[%clk 0:03:00.4]}
2... b6 {[%clk 0:02:58.8]} 3. Nf3 {[%clk 0:03:00.7]} 3... Bb7 {[%clk 0:03:00.1]}
4. e3 {[%clk 0:03:02.3]} 4... h6 {[%clk 0:03:01.5]} 5. h3 {[%clk 0:03:02.5]}
5... d6 {[%clk 0:03:01.9]} 6. a4 {[%clk 0:03:02.9]} 6... Ne4 {[%clk 0:02:59.3]}
7. a5 {[%clk 0:03:00.6]} 7... a6 {[%clk 0:02:54.4]} 8. c3 {[%clk 0:02:57.7]}
8... Nd7 {[%clk 0:02:48.3]} 9. axb6 {[%clk 0:02:39.3]} 9... cxb6 {[%clk
0:02:50.2]} 10. Bd3 {[%clk 0:02:35]} 10... g5 {[%clk 0:02:41.9]} 11. Bh2 {[%clk
0:02:35.5]} 11... Bg7 {[%clk 0:02:43.2]} 12. Nbd2 {[%clk 0:02:35.9]} 12... Ndf6
{[%clk 0:02:41.3]} 13. O-O {[%clk 0:02:31.9]} 13... O-O {[%clk 0:02:39.5]} 14.
Qc2 {[%clk 0:02:27.3]} 14... Nxd2 {[%clk 0:02:35.8]} 15. Nxd2 {[%clk 0:02:29.2]}
15... Re8 {[%clk 0:02:37]} 16. e4 {[%clk 0:02:27.6]} 16... e5 {[%clk 0:02:37.3]}
17. Rfe1 {[%clk 0:02:25.8]} 17... Nh5 {[%clk 0:02:35.3]} 18. dxe5 {[%clk
0:02:15.1]} 18... dxe5 {[%clk 0:02:35.6]} 19. Nf1 {[%clk 0:02:13.3]} 19... Nf4
{[%clk 0:02:26.4]} 20. Bc4 {[%clk 0:02:14]} 20... Qc7 {[%clk 0:02:08.7]} 21. Ba2
{[%clk 0:01:54.8]} 21... Kh8 {[%clk 0:01:58.3]} 22. Ne3 {[%clk 0:01:49]} 22...
Bc8 {[%clk 0:01:56.6]} 23. Bd5 {[%clk 0:01:43.9]} 23... Ra7 {[%clk 0:01:54.6]}
24. Red1 {[%clk 0:01:40.1]} 24... b5 {[%clk 0:01:43.9]} 25. Kh1 {[%clk
0:01:34.1]} 25... h5 {[%clk 0:01:43.5]} 26. f3 {[%clk 0:01:29.2]} 26... Bf8
{[%clk 0:01:35.2]} 27. b4 {[%clk 0:01:26.3]} 27... Be6 {[%clk 0:01:21.8]} 28.
Bg1 {[%clk 0:01:24.5]} 28... Qc8 {[%clk 0:01:06.2]} 29. Nf5 {[%clk 0:01:12.2]}
29... Bxf5 {[%clk 0:01:02.3]} 30. Bxa7 {[%clk 0:00:51.1]} 30... Bxh3 {[%clk
0:01:02.6]} 31. g3 {[%clk 0:00:43.3]} 31... Bg2+ {[%clk 0:00:44.7]} 32. Kg1
{[%clk 0:00:44.4]} 32... Bxf3 {[%clk 0:00:46.1]} 33. gxf4 {[%clk 0:00:34.2]}
33... gxf4 {[%clk 0:00:28.8]} 34. Kh2 {[%clk 0:00:35.3]} 34... Bxb4 {[%clk
0:00:23.8]} 35. Rg1 {[%clk 0:00:30.6]} 35... Bg4 {[%clk 0:00:21.3]} 36. Bf2
{[%clk 0:00:24]} 36... Be7 {[%clk 0:00:20.2]} 37. c4 {[%clk 0:00:23]} 37... b4
{[%clk 0:00:20.9]} 38. c5 {[%clk 0:00:23.2]} 38... Rg8 {[%clk 0:00:21.9]} 39.
Qb2 {[%clk 0:00:23.9]} 39... Bf6 {[%clk 0:00:22.1]} 40. Qxb4 {[%clk 0:00:24.9]}
40... f3 {[%clk 0:00:16]} 41. Qb6 {[%clk 0:00:23.6]} 41... Bg5 {[%clk
0:00:15.8]} 42. Qd6 {[%clk 0:00:22.8]} 42... Qe8 {[%clk 0:00:15.6]} 43. Rxa6
{[%clk 0:00:22.5]} 43... h4 {[%clk 0:00:12.2]} 44. Bxh4 {[%clk 0:00:22.8]} 44...
Rg6 {[%clk 0:00:08.6]} 45. Bxg5 {[%clk 0:00:21.5]} 45... Rxd6 {[%clk 0:00:09]}
46. Rxd6 {[%clk 0:00:23.4]} 46... Qa4 {[%clk 0:00:07.4]} 47. Rxg4 {[%clk
0:00:21.8]} 47... Qc2+ {[%clk 0:00:08.5]} 48. Kh3 {[%clk 0:00:22.9]} 48... f2
{[%clk 0:00:08.7]} 49. Bf6+ {[%clk 0:00:10.6]} 49... Kh7 {[%clk 0:00:09.4]} 50.
Rg7+ {[%clk 0:00:09.2]} 50... Kh6 {[%clk 0:00:08.6]} 51. Bxe5+ {[%clk
0:00:10.4]} 51... f6 {[%clk 0:00:09]} 52. Rxf6+ {[%clk 0:00:11]} 52... Kh5
{[%clk 0:00:10.1]} 53. Bf7# {[%clk 0:00:11.2]} 1-0

[Event "*** MasterClass Titled Tuesday Blitz"]
[Site "Chess.com"]
[Date "2017.12.12"]
[Round "1"]
[White "truki"]
[Black "Taron_Shagbazyan"]
[Result "0-1"]
[WhiteElo "2201"]
[BlackElo "2507"]
[TimeControl "180+2"]
[EndTime "13:10:02 PST"]
[Termination "Taron_Shagbazyan won by resignation"]

1. d4 {[%clk 0:03:01.9]} 1... d5 {[%clk 0:02:59.7]} 2. Bf4 {[%clk 0:03:02.2]}
2... Nf6 {[%clk 0:02:54.9]} 3. e3 {[%clk 0:03:03.5]} 3... c5 {[%clk 0:02:54]} 4.
c3 {[%clk 0:03:04.1]} 4... Nc6 {[%clk 0:02:54.9]} 5. Nd2 {[%clk 0:03:05.5]} 5...
Qb6 {[%clk 0:02:55.9]} 6. Qb3 {[%clk 0:03:06.9]} 6... c4 {[%clk 0:02:55.7]} 7.
Qc2 {[%clk 0:03:08]} 7... g6 {[%clk 0:02:54.8]} 8. b3 {[%clk 0:03:09.2]} 8...
Bf5 {[%clk 0:02:55.7]} 9. Qb2 {[%clk 0:03:10.4]} 9... e6 {[%clk 0:02:55]} 10.
Ngf3 {[%clk 0:03:06.3]} 10... h6 {[%clk 0:02:55.7]} 11. h3 {[%clk 0:03:05.6]}
11... g5 {[%clk 0:02:56.7]} 12. Bh2 {[%clk 0:03:05.5]} 12... a5 {[%clk
0:02:55.5]} 13. Be2 {[%clk 0:02:59.4]} 13... Be7 {[%clk 0:02:55.2]} 14. O-O
{[%clk 0:03:00]} 14... a4 {[%clk 0:02:43.8]} 15. Ne5 {[%clk 0:02:43.7]} 15... h5
{[%clk 0:02:32.4]} 16. Ndxc4 {[%clk 0:02:37.5]} 16... dxc4 {[%clk 0:02:28.2]}
17. Nxc4 {[%clk 0:02:39.4]} 17... a3 {[%clk 0:02:24.2]} 18. Nxb6 {[%clk
0:02:25.7]} 18... axb2 {[%clk 0:02:25.3]} 19. Nxa8 {[%clk 0:02:27.6]} 19...
bxa1=Q {[%clk 0:02:25.4]} 20. Rxa1 {[%clk 0:02:28.7]} 20... Nd5 {[%clk
0:02:10.1]} 21. c4 {[%clk 0:02:23.6]} 21... Ndb4 {[%clk 0:02:10.9]} 22. Nc7+
{[%clk 0:02:23.1]} 22... Kd7 {[%clk 0:02:08.2]} 23. a3 {[%clk 0:02:23]} 23...
Nc2 {[%clk 0:02:08.2]} 24. Ra2 {[%clk 0:02:23.3]} 24... Bxa3 {[%clk 0:02:01.4]}
25. Nb5 {[%clk 0:02:14.4]} 25... N6b4 {[%clk 0:01:54.7]} 26. Rxa3 {[%clk
0:01:57.8]} 26... Nxa3 {[%clk 0:01:52]} 27. Nxa3 {[%clk 0:01:58.3]} 27... Ra8
{[%clk 0:01:53.5]} 28. e4 {[%clk 0:01:46.8]} 28... Bxe4 {[%clk 0:01:43.4]} 29.
f3 {[%clk 0:01:47.4]} 29... Bg6 {[%clk 0:01:35.9]} 30. Nb5 {[%clk 0:01:44.5]}
30... Ra1+ {[%clk 0:01:37.3]} 31. Kf2 {[%clk 0:01:45]} 31... Ra2 {[%clk
0:01:38.8]} 32. Nc3 {[%clk 0:01:33.8]} 32... Rb2 {[%clk 0:01:29.8]} 33. Ne4
{[%clk 0:01:31]} 33... Nd3+ {[%clk 0:00:53.5]} 34. Ke3 {[%clk 0:01:28.6]} 34...
Bxe4 {[%clk 0:00:54.4]} 35. fxe4 {[%clk 0:01:25.2]} 35... Nf4 {[%clk 0:00:54.5]}
36. Bxf4 {[%clk 0:01:19.5]} 36... gxf4+ {[%clk 0:00:56.4]} 37. Kf2 {[%clk
0:01:19.5]} 37... h4 {[%clk 0:00:57.8]} 38. Kf3 {[%clk 0:01:15.4]} 38... Rxb3+
{[%clk 0:00:55.5]} 39. Kxf4 {[%clk 0:01:15.7]} 39... Rb2 {[%clk 0:00:51.1]} 40.
Bf3 {[%clk 0:01:08.9]} 40... Rc2 {[%clk 0:00:51.6]} 41. c5 {[%clk 0:01:09.8]}
41... Rc4 {[%clk 0:00:47.1]} 42. Ke5 {[%clk 0:01:05]} 42... Ke7 {[%clk
0:00:48.2]} 43. Kf4 {[%clk 0:00:40.1]} 43... Rxd4 {[%clk 0:00:48.9]} 44. Kg5
{[%clk 0:00:41.2]} 44... Rc4 {[%clk 0:00:49.7]} 45. e5 {[%clk 0:00:39.6]} 45...
Rxc5 {[%clk 0:00:47]} 46. Bxb7 {[%clk 0:00:40.4]} 46... Rxe5+ {[%clk 0:00:48.4]}
47. Kxh4 {[%clk 0:00:42.3]} 47... Rb5 {[%clk 0:00:48.1]} 48. Bf3 {[%clk
0:00:42.1]} 48... Kf6 {[%clk 0:00:47.6]} 49. Kg4 {[%clk 0:00:41.3]} 49... Rb4+
{[%clk 0:00:48.6]} 50. Kg3 {[%clk 0:00:42.3]} 50... Kg5 {[%clk 0:00:49.8]} 51.
Bc6 {[%clk 0:00:34.1]} 51... f5 {[%clk 0:00:50.5]} 52. Bd7 {[%clk 0:00:34.4]}
52... Rb3+ {[%clk 0:00:50.5]} 53. Kf2 {[%clk 0:00:32.3]} 53... e5 {[%clk
0:00:45.3]} 54. Be6 {[%clk 0:00:27.3]} 54... Rb2+ {[%clk 0:00:42.1]} 55. Kg3
{[%clk 0:00:24.1]} 55... Rb6 {[%clk 0:00:41.3]} 56. Bd7 {[%clk 0:00:23.7]} 56...
Rb3+ {[%clk 0:00:39.9]} 57. Kf2 {[%clk 0:00:24.1]} 57... e4 {[%clk 0:00:40.6]}
58. g3 {[%clk 0:00:19]} 58... Rb2+ {[%clk 0:00:40]} 59. Kf1 {[%clk 0:00:20]}
59... Kf6 {[%clk 0:00:38.3]} 60. h4 {[%clk 0:00:19.5]} 60... Ke5 {[%clk
0:00:36]} 61. h5 {[%clk 0:00:19]} 61... f4 {[%clk 0:00:37.2]} 62. gxf4+ {[%clk
0:00:19.3]} 62... Kxf4 {[%clk 0:00:38.7]} 63. h6 {[%clk 0:00:20.1]} 63... Rh2
{[%clk 0:00:39.6]} 0-1